bitfinex-derivatives/quotes_SOLF0:USTF0_20260204
["timestamp","ask_amount","ask_price","bid_price","bid_amount"]
[1770206859614,145.8882,96.104,95.953,83.06]
[1770206859615,3.47453046,96.01,95.953,83.06]
[1770206859816,3.47453046,96.03,95.97,3.47453046]
[1770206860521,83.06,96.046,95.974,9.391]
[1770206860719,83.06,96.046,95.94,8.68899159]
[1770206860919,83.08,96.049,95.94,8.68899159]
[1770206861714,9.3858,96.029,95.964,9.392]
[1770206862216,9.3858,96.029,95.94,8.68899159]
[1770206862427,8.68899159,96.04,95.973,9.3911]
[1770206863125,9.3857,96.03,95.973,9.3911]
[1770206863421,8.68899159,96.04,95.961,9.3923]
[1770206863819,8.68899159,96.04,95.92,8.68899159]
[1770206864022,83.1,96.039,95.92,8.68899159]
[1770206864321,83.1,96.038,95.92,8.68899159]
[1770206864521,8.68899159,96.04,95.92,8.68899159]
[1770206864719,8.68899159,96.04,95.94,8.68899159]
[1770206864720,83.1,96.037,95.94,8.68899159]
[1770206864918,8.68899159,96.04,95.94,8.68899159]
[1770206865115,83.1,96.048,95.94,8.68899159]
[1770206865312,83.1,96.054,95.94,8.68899159]
[1770206865719,9.3857,96.029,95.972,9.3912]
[1770206866122,9.3857,96.029,95.94,8.68899159]
[1770206866621,9.3867,96.02,95.94,8.68899159]
[1770206866824,8.68899159,96.04,95.94,8.68899159]
[1770206867020,83.12,96.039,95.932,83.1]
[1770206867320,9.3885,96.001,95.942,9.3942]
[1770206868115,9.3875,96.011,95.942,9.3942]
[1770206868312,8.68899159,96.02,95.932,9.3952]
[1770206868512,83.12,96.019,95.9,8.68899159]
[1770206868718,9.3903,95.982,95.9,8.68899159]
[1770206868924,83.12,95.993,95.912,9.3972]
[1770206869112,9.3923,95.962,95.882,1.81352956]
[1770206869318,83.12,95.993,95.88,8.68899159]
[1770206869520,83.14,95.992,95.88,8.68899159]
[1770206869919,8.68899159,96.0,95.9,8.68899159]
[1770206870116,83.14,95.999,95.9,8.68899159]
[1770206870418,8.68899159,96.0,95.9,8.68899159]
[1770206870619,83.14,96.003,95.933,9.3951]
[1770206870823,83.14,96.003,95.9,8.68899159]
[1770206871324,9.388,96.006,95.92,8.68899159]
[1770206871822,9.388,96.006,95.946,9.3938]
[1770206872123,83.14,96.034,95.92,8.68899159]
[1770206872819,8.68899159,96.04,95.94,8.68899159]
[1770206873222,9.3859,96.027,95.94,8.68899159]
[1770206873823,83.16,96.053,95.94,8.68899159]
[1770206874117,9.3829,96.058,95.996,9.3889]
[1770206874322,8.68899159,96.08,95.98,8.68899159]
[1770206875113,83.16,96.09,95.98,8.68899159]
[1770206875114,9.3809,96.079,96.006,9.3879]
[1770206875322,9.3809,96.079,96.0,8.68899159]
[1770206876825,83.16,96.09,96.0,8.68899159]
[1770206876826,9.3799,96.089,96.0,8.68899159]
[1770206877526,83.16,96.09,96.0,8.68899159]
[1770206877932,9.3808,96.08,96.026,9.386]
[1770206878123,8.68899159,96.1,96.026,9.386]
[1770206878325,100.32,96.112,96.0,8.68899159]
[1770206879223,1.81193377,96.116,96.0,8.68899159]
[1770206879424,88.74,96.113,96.0,8.68899159]
[1770206879720,9.3796,96.092,96.0,8.68899159]
[1770206879925,8.68899159,96.1,96.0,8.68899159]
[1770206880536,8.68899159,96.1,96.013,9.3873]
[1770206881228,9.3816,96.072,96.013,9.3873]
[1770206882028,9.3824,96.063,96.003,9.3882]
[1770206882527,83.14,96.081,95.98,8.68899159]
[1770206882837,9.3824,96.063,95.98,8.68899159]
[1770206883234,9.3833,96.054,95.96,8.68899159]
[1770206883534,8.68899159,96.11,95.92,8.68899159]
[1770206883535,8.68899159,96.03,95.92,8.68899159]
[1770206883922,9.3872,96.014,95.92,8.68899159]
[1770206884726,9.68847432,96.085,95.922,146.1627]
[1770206884931,83.14,96.076,95.96,8.68899159]
[1770206885126,8.68899159,96.08,95.96,8.68899159]
[1770206885335,83.14,96.079,95.96,8.68899159]
[1770206885528,9.3838,96.049,95.994,9.3891]
[1770206885731,83.14,96.079,95.994,9.3891]
[1770206885929,83.14,96.079,95.98,8.68899159]
[1770206886732,83.14,96.079,95.97,8.68899159]
[1770206887436,83.14,96.079,95.986,9.3898]
[1770206887739,8.68899159,96.06,95.986,9.3898]
[1770206888335,8.68899159,96.06,95.975,9.391]
[1770206888534,83.14,96.059,95.975,9.391]
[1770206889137,8.68899159,96.04,95.965,9.3919]
[1770206889330,100.76,96.039,95.93,8.68899159]
[1770206889532,8.68899159,96.02,95.91,8.68899159]
[1770206889731,9.3895,95.99,95.937,9.3947]
[1770206890027,8.68899159,96.0,95.91,8.68899159]
[1770206890228,9.3904,95.982,95.925,9.3958]
[1770206890831,9.3894,95.991,95.934,9.395]
[1770206891229,83.14,96.016,95.91,8.68899159]
[1770206891642,9.3877,96.009,95.954,9.393]
[1770206893944,8.68899159,96.02,95.9,8.68899159]
[1770206894131,8.68899159,96.02,95.92,8.68899159]
[1770206894842,9.3868,96.018,95.94,8.68899159]
[1770206895740,9.3858,96.028,95.963,9.3921]
[1770206895939,9.3858,96.028,95.94,8.68899159]
[1770206896648,8.30047266,96.027,95.92,8.68899159]
[1770206896844,8.30047266,96.026,95.92,8.68899159]
[1770206897036,90.34,96.033,95.92,8.68899159]
[1770206897037,8.30047266,96.025,95.92,8.68899159]
[1770206897237,8.30047266,96.024,95.92,8.68899159]
[1770206897436,8.30047266,96.023,95.92,8.68899159]
[1770206897641,8.30047266,96.033,95.92,8.68899159]
[1770206897944,9.3876,96.01,95.958,9.3926]
[1770206900942,95.34,96.034,95.906,83.16]
[1770206900943,9.3866,96.021,95.94,8.68899159]
[1770206901243,8.31980267,96.02,95.94,8.68899159]
[1770206901443,8.31980267,96.019,95.94,8.68899159]
[1770206901644,9.3866,96.021,95.94,8.68899159]
[1770206901946,9.3857,96.03,95.94,8.68899159]
[1770206902146,8.32000429,96.029,95.94,8.68899159]
[1770206902446,8.32000429,96.028,95.94,8.68899159]
[1770206902643,8.32000429,96.027,95.94,8.68899159]
[1770206902841,9.3862,96.024,95.972,9.3912]
[1770206903149,8.68899159,96.02,95.92,8.68899159]
[1770206903343,9.3879,96.007,95.953,9.3931]
[1770206903643,8.32000429,96.006,95.92,8.68899159]
[1770206903840,9.3869,96.017,95.96,9.3925]
[1770206904047,9.64365569,96.049,95.94,8.68899159]
[1770206904242,101.08,96.047,95.94,8.68899159]
[1770206904448,8.32607164,96.046,95.94,8.68899159]
[1770206904756,8.32607164,96.045,95.94,8.68899159]
[1770206905055,8.32607164,96.044,95.94,8.68899159]
[1770206905245,9.3853,96.034,95.983,9.3902]
[1770206905441,8.32607164,96.033,95.983,9.3902]
[1770206905646,8.32607164,96.032,95.983,9.3902]
[1770206905950,8.32607164,96.031,95.983,9.3902]
[1770206906148,8.32607164,96.03,95.983,9.3902]
[1770206906350,8.32607164,96.029,95.94,8.68899159]
[1770206906648,8.32607164,96.028,95.94,8.68899159]
[1770206906845,8.32607164,96.027,95.94,8.68899159]
[1770206907048,8.32607164,96.026,95.973,9.3912]
[1770206907250,8.32607164,96.025,95.973,9.3912]
[1770206907454,8.32607164,96.024,95.973,9.3912]
[1770206907644,9.3851,96.036,95.982,9.3903]
[1770206907841,8.32682019,96.035,95.982,9.3903]
[1770206908043,8.32682019,96.034,95.941,83.18]
[1770206908249,8.32682019,96.033,95.941,83.18]
[1770206908448,9.3868,96.019,95.974,9.3911]
[1770206908847,8.68899159,96.04,95.941,83.18]
[1770206909150,9.3873,96.013,95.941,83.18]
[1770206909665,9.3878,96.009,95.958,9.3926]
[1770206910547,9.3884,96.002,95.958,9.3926]
[1770206910950,8.32906176,96.001,95.948,9.3936]
[1770206911146,8.32906176,96.0,95.948,9.3936]
[1770206911348,8.68899159,96.02,95.948,9.3936]
[1770206911349,8.32906176,95.999,95.948,9.3936]
[1770206911647,8.32906176,95.998,95.948,9.3936]
[1770206911851,9.3892,95.994,95.948,9.3936]
[1770206912252,9.3892,95.994,95.9,18.7966]
[1770206912253,9.3902,95.984,95.9,18.7966]
[1770206912454,83.18,96.005,95.9,27.48559159]
[1770206912748,83.18,96.005,95.889,83.18]
[1770206912749,8.68899159,96.0,95.889,83.18]
[1770206912947,108.42886539,95.999,95.889,83.18]
[1770206913154,8.32886539,95.998,95.889,83.18]
[1770206913350,8.68899159,96.0,95.889,83.18]
[1770206913351,109.40886539,95.997,95.889,83.18]
[1770206913552,8.32886539,95.996,95.889,83.18]
[1770206913751,9.3911,95.975,95.921,9.3962]
[1770206913950,9.3911,95.975,95.889,83.18]
[1770206914253,8.32975952,95.996,95.9,8.68899159]
[1770206914453,9.3902,95.984,95.935,9.3948]
[1770206915054,8.32894312,95.983,95.935,9.3948]
[1770206915247,9.3902,95.984,95.935,9.3948]
[1770206917351,9.3893,95.993,95.9,8.68899159]
[1770206917555,8.68899159,96.0,95.9,8.68899159]
[1770206917556,8.3275272,95.992,95.9,8.68899159]
[1770206917753,8.3275272,95.991,95.9,8.68899159]
[1770206917956,8.3275272,95.99,95.9,8.68899159]
[1770206918152,8.3275272,95.989,95.9,8.68899159]
[1770206918354,8.3275272,95.988,95.9,8.68899159]
[1770206918554,9.3911,95.975,95.9,8.68899159]
[1770206918856,8.68899159,96.0,95.889,83.18]
[1770206919050,8.3265594,95.999,95.889,83.18]
[1770206919252,8.3265594,95.998,95.889,83.18]
[1770206919446,8.3265594,95.997,95.881,83.18]
[1770206919652,8.3265594,95.996,95.881,83.18]
[1770206919953,9.3917,95.968,95.918,9.3965]
[1770206920255,9.39,95.986,95.94,9.3944]
[1770206920862,9.39,95.986,95.9,8.69631615]
[1770206920863,8.32431166,96.009,95.901,18.7964]
[1770206921056,8.32431166,96.008,95.901,18.7964]
[1770206921254,8.32431166,96.007,95.901,18.7964]
[1770206921457,9.389,95.996,95.945,9.3939]
[1770206921960,9.3898,95.988,95.937,9.3947]
[1770206922749,9.3906,95.979,95.927,9.3957]
[1770206923156,9.64365569,96.004,95.9,8.69631615]
[1770206923358,17.97748857,96.003,95.9,8.69631615]
[1770206923552,9.3916,95.969,95.917,9.3967]
[1770206923749,9.3916,95.969,95.88,8.69631615]
[1770206923950,9.3916,95.969,95.884,83.2]
[1770206925957,9.3906,95.979,95.9,8.69631615]
[1770206926158,8.33760506,95.978,95.9,8.69631615]
[1770206926348,8.34106387,95.977,95.935,9.3948]
[1770206926551,8.34106387,95.976,95.935,9.3948]
[1770206926747,9.3906,95.979,95.935,9.3948]
[1770206926952,9.3909,95.976,95.935,9.3948]
[1770206927255,8.34260869,95.975,95.935,9.3948]
[1770206927455,8.34260869,95.974,95.925,9.3958]
[1770206927657,8.34260869,95.973,95.925,9.3958]
[1770206927858,8.34260869,95.972,95.884,83.2]
[1770206928055,8.34260869,95.971,95.884,83.2]
[1770206928252,8.34260869,95.97,95.88,8.69631615]
[1770206928553,9.3929,95.956,95.916,9.3967]
[1770206928754,9.64365569,95.987,95.916,9.3967]
[1770206928954,8.36855322,95.986,95.916,9.3967]
[1770206929156,8.36855322,95.985,95.884,18.7998]
[1770206929348,8.36855322,95.984,95.884,18.7998]
[1770206929550,9.3922,95.963,95.884,18.7998]
[1770206930859,9.3922,95.963,95.923,9.396]
[1770206931661,9.64365569,95.986,95.883,83.2]
[1770206931864,9.64365569,95.982,95.883,83.2]
[1770206932163,8.69631615,95.97,95.883,83.2]
[1770206932362,8.37393451,95.969,95.883,83.2]
[1770206932565,8.37393451,95.968,95.883,83.2]
[1770206932759,8.37393451,95.967,95.883,83.2]
[1770206932964,8.37393451,95.966,95.883,83.2]
[1770206933161,8.37393451,95.965,95.883,83.2]
[1770206933362,8.37393451,95.964,95.883,83.2]
[1770206933562,8.37393451,95.963,95.883,83.2]
[1770206933863,9.3936,95.949,95.9,9.3983]
[1770206934466,9.3925,95.96,95.883,83.2]
[1770206934667,8.3772156,95.959,95.885,18.7997]
[1770206934864,101.38,95.976,95.885,18.7997]
[1770206935064,9.3916,95.969,95.885,18.7997]
[1770206935366,8.37654069,95.968,95.885,18.7997]
[1770206935573,8.37654069,95.967,95.885,18.7997]
[1770206935764,8.37654069,95.966,95.885,18.7997]
[1770206935966,9.64365569,95.984,95.885,18.7997]
[1770206935967,9.3924,95.961,95.909,9.3975]
[1770206936283,8.37654069,95.96,95.909,9.3975]
[1770206936473,8.37551532,95.959,95.909,9.3975]
[1770206936764,9.3924,95.961,95.909,9.3975]
[1770206936765,8.37551532,95.958,95.909,9.3975]
[1770206936964,9.3924,95.961,95.909,9.3975]
[1770206937166,8.37551725,95.96,95.909,9.3975]
[1770206937358,8.37551725,95.959,95.909,9.3975]
[1770206937563,8.37551725,95.958,95.909,9.3975]
[1770206937868,9.3924,95.961,95.909,9.3975]
[1770206938065,9.3926,95.959,95.909,9.3975]
[1770206938569,9.3926,95.959,95.916,9.3968]
[1770206939570,9.3914,95.971,95.885,18.7997]
[1770206940169,9.3914,95.971,95.927,9.3957]
[1770206941070,9.3914,95.971,95.919,9.3964]
[1770206941272,9.3917,95.968,95.919,9.3964]
[1770206941765,9.3917,95.968,95.926,9.3957]
[1770206941971,9.3909,95.976,95.926,9.3957]
[1770206942170,8.37328016,95.975,95.926,9.3957]
[1770206942366,8.37328016,95.974,95.926,9.3957]
[1770206942567,8.37328016,95.973,95.926,9.3957]
[1770206942770,9.3917,95.969,95.926,9.3957]
[1770206944163,9.3908,95.977,95.926,9.3957]
[1770206944375,3.47968063,95.97,95.926,9.3957]
[1770206944869,3.47968063,95.98,95.926,9.3957]
[1770206945066,9.3917,95.968,95.926,9.3957]
[1770206945271,3.47968063,95.96,95.9,3.47968063]
[1770206946666,9.393,95.955,95.915,9.3968]
[1770206947474,9.3922,95.963,95.921,9.3962]
[1770206948175,3.47968063,95.98,95.92,3.47968063]
[1770206948382,8.37719184,95.979,95.92,3.47968063]
[1770206948580,9.3914,95.972,95.927,9.3956]
[1770206948870,3.47968063,95.97,95.927,9.3956]
[1770206949269,9.3914,95.972,95.927,9.3956]
[1770206949467,9.392,95.966,95.919,9.3964]
[1770206949672,3.47968063,95.96,95.9,3.47968063]
[1770206949871,8.38138331,95.959,95.9,3.47968063]
[1770206950070,3.47968063,95.96,95.9,3.47968063]
[1770206950071,8.38138331,95.958,95.9,3.47968063]
[1770206950275,8.38138331,95.957,95.9,3.47968063]
[1770206950466,8.38138331,95.956,95.9,3.47968063]
[1770206950670,8.38138331,95.955,95.91,9.3973]
[1770206950967,9.3926,95.959,95.91,9.3973]
[1770206951169,8.38464413,95.958,95.91,9.3973]
[1770206951371,8.38464413,95.957,95.91,9.3973]
[1770206951573,8.38464413,95.956,95.91,9.3973]
[1770206951877,8.38464413,95.955,95.91,9.3973]
[1770206952077,8.38464413,95.954,95.91,9.3973]
[1770206952276,9.3926,95.959,95.91,9.3973]
[1770206952277,8.38464413,95.953,95.91,9.3973]
[1770206952572,8.38464413,95.952,95.916,9.3967]
[1770206952775,8.38464413,95.951,95.916,9.3967]
[1770206952977,9.3926,95.959,95.916,9.3967]
[1770206953177,9.3928,95.957,95.916,9.3967]
[1770206953475,3.47968063,95.95,95.9,9.3983]
[1770206953677,8.39142888,95.949,95.9,9.3983]
[1770206953876,8.39142888,95.948,95.9,9.3983]
[1770206954076,8.39142888,95.947,95.9,9.3983]
[1770206954283,8.39142888,95.946,95.9,9.3983]
[1770206954472,8.39142888,95.945,95.9,9.3983]
[1770206954667,9.3944,95.941,95.9,9.3983]
[1770206954871,8.39142888,95.94,95.9,9.3983]
[1770206955067,8.39142888,95.939,95.9,9.3983]
[1770206955272,8.39142888,95.938,95.9,9.3983]
[1770206955472,8.39142888,95.937,95.9,9.3983]
[1770206955774,8.39142888,95.936,95.9,9.3983]
[1770206955975,9.3944,95.941,95.9,9.3983]
[1770206956279,8.40296108,95.94,95.9,9.3983]
[1770206956598,8.40296108,95.939,95.9,9.3983]
[1770206956780,8.40296108,95.938,95.907,9.3976]
[1770206956978,9.3935,95.95,95.907,9.3976]
[1770206957171,8.40357086,95.949,95.907,9.3976]
[1770206957383,8.40357086,95.948,95.907,9.3976]
[1770206957577,8.40357086,95.947,95.91,3.47968063]
[1770206957779,3.47968063,95.97,95.91,3.47968063]
[1770206957980,9.64365569,95.968,95.9,3.47968063]
[1770206958180,3.47968063,95.96,95.9,3.47968063]
[1770206958480,8.40800856,95.959,95.9,3.47968063]
[1770206958680,8.40800856,95.958,95.913,9.397]
[1770206958882,8.40800856,95.957,95.913,9.397]
[1770206959074,8.40800856,95.956,95.913,9.397]
[1770206959284,8.40800856,95.955,95.913,9.397]
[1770206959475,8.40800856,95.954,95.913,9.397]
[1770206959676,8.40800856,95.953,95.913,9.397]
[1770206959873,8.40800856,95.952,95.913,9.397]
[1770206960075,8.40800856,95.951,95.913,9.397]
[1770206960276,8.40800856,95.95,95.913,9.397]
[1770206960473,8.40800856,95.949,95.913,9.397]
[1770206960675,8.40800856,95.948,95.913,9.397]
[1770206960875,8.40800856,95.947,95.913,9.397]
[1770206961188,8.40800856,95.946,95.906,9.3977]
[1770206961379,8.40800856,95.945,95.906,9.3977]
[1770206961683,8.40800856,95.944,95.913,9.397]
[1770206961882,9.3926,95.959,95.913,9.397]
[1770206962184,8.4088589,95.958,95.91,3.47968063]
[1770206962384,9.64365569,95.967,95.92,9.3964]
[1770206962385,8.4088589,95.957,95.92,9.3964]
[1770206962589,8.4088589,95.956,95.92,9.3964]
[1770206962784,8.4088589,95.955,95.92,9.3964]
[1770206962983,19.03545569,95.967,95.92,9.3964]
[1770206962984,8.4088589,95.954,95.92,9.3964]
[1770206963287,8.4088589,95.953,95.91,3.47968063]
[1770206963489,8.4088589,95.952,95.91,3.47968063]
[1770206963686,8.4088589,95.951,95.919,9.3964]
[1770206963887,8.4088589,95.95,95.919,9.3964]
[1770206964090,8.4088589,95.949,95.9,3.47968063]
[1770206964281,8.4088589,95.948,95.9,3.47968063]
[1770206964490,8.4088589,95.947,95.9,3.47968063]
[1770206964687,8.4088589,95.946,95.89,3.47968063]
[1770206964888,8.4088589,95.945,95.89,3.47968063]
[1770206965089,8.4088589,95.944,95.89,3.47968063]
[1770206965286,8.4088589,95.943,95.89,3.47968063]
[1770206965487,8.4088589,95.942,95.89,3.47968063]
[1770206965687,8.4088589,95.941,95.91,9.3973]
[1770206965890,8.4104737,95.94,95.91,9.3973]
[1770206966089,9.3931,95.954,95.91,9.3973]
[1770206966289,8.410233,95.953,95.91,9.3973]
[1770206966487,8.410233,95.952,95.91,9.3973]
[1770206966686,8.410233,95.951,95.91,9.3973]
[1770206966888,8.410233,95.95,95.91,9.3973]
[1770206967188,8.410233,95.949,95.91,9.3973]
[1770206967488,8.410233,95.948,95.91,9.3973]
[1770206967685,8.410233,95.947,95.91,9.3973]
[1770206967884,8.410233,95.946,95.898,9.3985]
[1770206968077,8.410233,95.945,95.898,9.3985]
[1770206968278,8.410233,95.944,95.898,9.3985]
[1770206968482,8.410233,95.943,95.898,9.3985]
[1770206968684,9.3944,95.941,95.898,9.3985]
[1770206968879,8.410233,95.94,95.898,9.3985]
[1770206969086,8.410233,95.939,95.898,9.3985]
[1770206969287,8.410233,95.938,95.898,9.3985]
[1770206969484,9.3949,95.936,95.89,9.3993]
[1770206969685,8.410233,95.935,95.89,9.3993]
[1770206969887,8.410233,95.934,95.88,3.47968063]
[1770206970086,8.410233,95.933,95.88,3.47968063]
[1770206970292,9.3953,95.931,95.887,9.3995]
[1770206970494,8.410233,95.93,95.887,9.3995]
[1770206970690,8.410233,95.929,95.887,9.3995]
[1770206970888,8.410233,95.928,95.887,9.3995]
[1770206971099,8.410233,95.927,95.887,9.3995]
[1770206971290,8.410233,95.926,95.887,9.3995]
[1770206971499,8.410233,95.925,95.895,9.3988]
[1770206971693,9.3943,95.941,95.895,9.3988]
[1770206971892,8.40927064,95.94,95.895,9.3988]
[1770206972092,8.40927064,95.939,95.895,9.3988]
[1770206972387,8.40927064,95.938,95.895,9.3988]
[1770206972596,8.40927064,95.937,95.895,9.3988]
[1770206972796,8.40927064,95.936,95.895,9.3988]
[1770206973094,8.40927064,95.935,95.87,3.47968063]
[1770206973294,8.40927064,95.934,95.88,3.47968063]
[1770206973495,8.40927064,95.933,95.89,3.47968063]
[1770206973695,8.40927064,95.932,95.898,9.3985]
[1770206973892,8.40927064,95.931,95.898,9.3985]
[1770206974098,8.40927064,95.93,95.898,9.3985]
[1770206974298,8.40927064,95.929,95.898,9.3985]
[1770206974500,8.40927064,95.928,95.898,9.3985]
[1770206974698,8.40927064,95.927,95.89,3.47968063]
[1770206974898,8.40927064,95.926,95.88,3.47968063]
[1770206975098,9.3945,95.939,95.88,3.47968063]
[1770206975298,9.3949,95.936,95.891,9.3992]
[1770206975496,8.40825665,95.935,95.891,9.3992]
[1770206975703,8.40825665,95.934,95.891,9.3992]
[1770206975903,8.40825665,95.933,95.88,3.47968063]
[1770206976103,8.40825665,95.932,95.88,3.47968063]
[1770206976301,9.3956,95.929,95.878,9.4005]
[1770206976505,8.40825665,95.928,95.878,9.4005]
[1770206976700,8.40825665,95.927,95.86,3.47968063]
[1770206977008,8.40825665,95.926,95.88,3.47968063]
[1770206977203,9.75338411,95.949,95.89,3.47968063]
[1770206977405,8.40725897,95.948,95.89,3.47968063]
[1770206977604,8.40725897,95.947,95.89,3.47968063]
[1770206977805,8.40725897,95.946,95.89,3.47968063]
[1770206978105,8.40725897,95.945,95.89,3.47968063]
[1770206978302,8.40725897,95.944,95.89,3.47968063]
[1770206978502,8.40725897,95.943,95.89,3.47968063]
[1770206978706,8.40725897,95.942,95.891,9.3992]
[1770206978904,8.40725897,95.941,95.891,9.3992]
[1770206979105,3.47968063,95.97,95.91,3.47968063]
[1770206979306,8.40560996,95.969,95.91,3.47968063]
[1770206979506,9.3919,95.966,95.91,12.87698063]
[1770206979705,8.40560996,95.965,95.91,12.87698063]
[1770206979908,9.3919,95.966,95.91,12.87698063]
[1770206979909,8.40560996,95.964,95.91,12.87698063]
[1770206980110,8.40560996,95.963,95.91,12.87698063]
[1770206980300,8.40560996,95.962,95.91,12.87698063]
[1770206980498,8.40560996,95.961,95.91,12.87698063]
[1770206980707,9.3919,95.966,95.91,12.87698063]
[1770206980708,8.40560996,95.96,95.91,12.87698063]
[1770206980907,8.40560996,95.959,95.91,12.87698063]
[1770206981110,8.40560996,95.958,95.91,12.87698063]
[1770206981405,8.40560996,95.957,95.91,12.87698063]
[1770206981599,8.40560996,95.956,95.91,12.87698063]
[1770206981799,9.3919,95.966,95.91,12.87698063]
[1770206981999,8.40472305,95.965,95.91,12.87698063]
[1770206982197,8.40472305,95.964,95.91,12.87698063]
[1770206982504,8.40472305,95.963,95.91,12.8768011]
[1770206982699,8.40472305,95.962,95.91,12.8768011]
[1770206983012,8.40472305,95.961,95.91,12.8768011]
[1770206983209,8.40472305,95.96,95.91,12.8768011]
[1770206983412,8.40472305,95.959,95.91,12.8768011]
[1770206983604,8.40472305,95.958,95.91,12.8768011]
[1770206983805,8.40472305,95.957,95.91,12.8768011]
[1770206984013,8.40472305,95.956,95.91,12.8768011]
[1770206984205,9.3919,95.966,95.91,12.8768011]
[1770206984408,9.3922,95.963,95.91,12.8768011]
[1770206984606,8.40114138,95.962,95.91,12.8768011]
[1770206984808,8.40114138,95.961,95.91,12.8768011]
[1770206985008,8.40114138,95.96,95.91,12.8768011]
[1770206985208,8.40114138,95.959,95.91,12.8768011]
[1770206985512,8.40114138,95.958,95.91,12.8768011]
[1770206985812,8.40114138,95.957,95.91,12.8768011]
[1770206986015,8.40114138,95.956,95.91,12.8768011]
[1770206986215,9.3922,95.963,95.91,12.8768011]
[1770206986407,9.3924,95.961,95.91,12.8768011]
[1770206986608,8.40216046,95.96,95.91,12.8768011]
[1770206986808,8.40216046,95.959,95.91,12.8768011]
[1770206987101,8.40216046,95.958,95.91,9.3973]
[1770206987302,8.40216046,95.957,95.91,9.3973]
[1770206987507,12.99904743,95.996,95.845,146.2796]
[1770206987508,3.4795011,95.99,95.93,3.4795011]
[1770206987709,8.38574387,95.989,95.94,3.4795011]
[1770206988011,3.4795011,96.0,95.94,3.4795011]
[1770206988012,8.38574387,95.988,95.94,3.4795011]
[1770206988209,8.38574387,95.987,95.94,3.4795011]
[1770206988408,8.38574387,95.986,95.956,9.3928]
[1770206988609,9.3882,96.004,95.956,9.3928]
[1770206988913,8.38359742,96.003,95.956,9.3928]
[1770206989116,3.4795011,96.03,95.97,3.4795011]
[1770206989314,8.38617089,96.029,95.98,3.4795011]
[1770206989610,8.38617089,96.028,95.99,3.4795011]
[1770206989817,3.4795011,96.06,96.0,3.4795011]
[1770206990016,8.37810037,96.059,96.0,3.4795011]
[1770206990211,8.37810037,96.058,96.0,3.4795011]
[1770206990414,8.37810037,96.057,96.0,3.4795011]
[1770206990612,8.37810037,96.056,96.0,3.4795011]
[1770206990807,9.3834,96.053,96.002,9.3883]
[1770206991019,9.3834,96.053,95.959,83.22]
[1770206991313,3.4795011,96.06,96.0,3.4795011]
[1770206991518,8.35317172,96.059,96.0,3.4795011]
[1770206991812,8.35317172,96.058,96.0,3.4795011]
[1770206992017,8.35317172,96.057,96.0,3.4795011]
[1770206992218,3.4795011,96.06,96.0,3.4795011]
[1770206992418,3.4795011,96.06,95.959,83.22]
[1770206992419,9.3825,96.062,96.01,3.4795011]
[1770206993616,9.3816,96.072,96.02,3.4795011]
[1770206994620,9.3816,96.072,96.011,9.3874]
[1770206994914,9.3824,96.063,96.01,3.4795011]
[1770206996110,3.4795011,96.05,95.99,3.4795011]
[1770206997820,9.3839,96.048,95.99,12.8690011]
[1770206999028,9.3839,96.048,95.971,83.2]
[1770206999029,12.8623011,96.06,96.0,3.4795011]
[1770206999220,9.3828,96.06,96.0,3.4795011]
[1770206999621,9.3828,96.06,96.002,9.3883]
[1770206999818,9.3828,96.06,96.01,3.4795011]
[1770207000813,9.3818,96.069,96.01,12.8670011]
[1770207001419,3.4795011,96.06,95.93,52.0]
[1770207001725,8.33401343,96.103,95.919,18.7929]
[1770207001726,3.4795011,96.02,95.96,3.4795011]
[1770207001920,3.4795011,96.03,95.97,3.4795011]
[1770207002226,3.87728685,96.029,95.98,3.4795011]
[1770207003123,3.87728685,96.029,95.972,1.85539295]
[1770207004129,3.87728685,95.999,95.94,3.4795011]
[1770207004322,3.87728685,95.999,95.94,5.33489405]
[1770207004628,3.87728685,95.999,95.941,1.85539295]
[1770207004929,3.87728685,95.999,95.941,11.24959295]
[1770207005317,9.3899,95.987,95.941,1.85539295]
[1770207005722,3.87728685,95.999,95.95,3.4795011]
[1770207006628,3.87728685,95.999,95.951,1.85539295]
[1770207007531,9.3888,95.998,95.951,11.24869295]
[1770207008518,3.87728685,95.999,95.951,11.24869295]
[1770207008731,9.3874,96.012,95.961,1.28145514]